bitfinex/quotes_BTCUSD_20240901
["timestamp","ask_amount","ask_price","bid_price","bid_amount"]
[1725187556795,0.81584607,58220.0,58219.0,1.5240537]
[1725187557421,0.81584607,58220.0,58219.0,1.58715]
[1725187557675,0.81584607,58220.0,58219.0,1.60115]
[1725187557896,0.81584607,58220.0,58219.0,1.1945237]
[1725187558103,0.81084607,58220.0,58219.0,1.24592506]
[1725187559836,0.81084607,58220.0,58219.0,0.90239506]
[1725187560465,0.81084607,58220.0,58219.0,0.8509937]
[1725187561541,0.81084607,58220.0,58219.0,0.92809]
[1725187562167,0.81084607,58220.0,58219.0,0.8509937]
[1725187562387,0.81084607,58220.0,58219.0,0.92809]
[1725187563222,0.81084607,58220.0,58219.0,0.8509937]
[1725187563440,0.81084607,58220.0,58219.0,0.92809]
[1725187563665,0.81084607,58220.0,58219.0,0.8509937]
[1725187564141,0.81084607,58220.0,58219.0,0.92809]
[1725187564573,0.81084607,58220.0,58219.0,0.8509937]
[1725187565230,0.81084607,58220.0,58219.0,0.92819994]
[1725187566788,0.81084607,58220.0,58219.0,1.1945237]
[1725187567232,0.81084607,58220.0,58219.0,1.29731877]
[1725187568135,0.81084607,58220.0,58219.0,1.1945237]
[1725187568793,0.81084607,58220.0,58219.0,1.5380537]
[1725187568993,0.81084607,58220.0,58219.0,1.32301754]
[1725187569430,0.81084607,58220.0,58219.0,1.66654754]
[1725187569645,0.81084607,58220.0,58219.0,1.5380537]
[1725187570085,0.81084607,58220.0,58219.0,1.66683073]
[1725187570553,0.81084607,58220.0,58219.0,1.5380537]
[1725187570982,0.81084607,58220.0,58219.0,1.1945237]
[1725187571431,0.81084607,58220.0,58219.0,1.5380537]
[1725187571660,0.81084607,58220.0,58219.0,1.1945237]
[1725187571884,0.56333419,58220.0,58219.0,1.29757446]
[1725187573846,0.56333419,58220.0,58219.0,0.61051446]
[1725187574062,1.57144419,58220.0,58219.0,0.0288987]
[1725187574300,2.18597645,58220.0,58219.0,0.0288987]
[1725187574556,1.94245245,58220.0,58219.0,0.0288987]
[1725187574773,1.62588014,58220.0,58219.0,0.0288987]
[1725187575223,1.62588014,58220.0,58219.0,0.0148987]
[1725187575645,1.62588014,58220.0,58219.0,0.0158987]
[1725187575854,1.62588014,58220.0,58219.0,0.0018987]
[1725187576058,1.28235614,58220.0,58219.0,0.0018987]
[1725187576288,1.28235614,58220.0,58219.0,0.0028987]
[1725187576533,1.28535614,58220.0,58219.0,0.0028987]
[1725187576790,1.62588014,58220.0,58219.0,0.0018987]
[1725187577233,0.94183214,58220.0,58219.0,0.0028987]
[1725187577464,1.28535614,58220.0,58219.0,0.0028987]
[1725187577686,1.28235614,58220.0,58219.0,0.0008987]
[1725187578142,1.28335614,58220.0,58219.0,0.0018987]
[1725187578783,1.28235614,58220.0,58219.0,0.0008987]
[1725187579214,1.28335614,58220.0,58219.0,0.0008987]
[1725187580115,1.28635614,58220.0,58219.0,0.0018987]
[1725187580354,1.28335614,58220.0,58219.0,0.0008987]
[1725187580772,1.28635614,58220.0,58219.0,0.0008987]
[1725187582074,1.62988014,58220.0,58219.0,0.0008987]
[1725187582296,1.97340414,58220.0,58219.0,0.0008987]
[1725187583595,1.97040414,58220.0,58219.0,0.0008987]
[1725187584011,1.97340414,58220.0,58219.0,0.0008987]
[1725187585097,1.97240414,58220.0,58219.0,0.0008987]
[1725187585755,1.79500414,58220.0,58219.0,0.0008987]
[1725187591440,1.30218014,58220.0,58219.0,0.0008987]
[1725187592916,1.30218014,58220.0,58219.0,0.0018987]
[1725187593167,1.29918014,58220.0,58219.0,0.0018987]
[1725187593628,0.44037014,58220.0,58219.0,0.1726637]
[1725187593839,0.44037014,58220.0,58219.0,0.2918987]
[1725187594074,0.44037014,58220.0,58219.0,0.2928987]
[1725187594980,0.44737014,58220.0,58219.0,0.2938987]
[1725187599464,0.61913214,58220.0,58219.0,0.2938987]
[1725187600102,0.44737014,58220.0,58219.0,0.2938987]
[1725187602714,0.34737014,58220.0,58219.0,0.2938987]
[1725187604002,0.51913214,58220.0,58219.0,0.2938987]
[1725187605711,0.34737014,58220.0,58219.0,0.2938987]
[1725187605944,0.51913214,58220.0,58219.0,0.2938987]
[1725187610873,0.34737014,58220.0,58219.0,0.2938987]
[1725187615192,0.86265614,58220.0,58219.0,0.0028987]
[1725187618886,1.54970414,58220.0,58219.0,0.0028987]
[1725187619112,1.61640414,58220.0,58219.0,0.0028987]
[1725187619334,1.58945245,58220.0,58219.0,0.0028987]
[1725187619765,1.61640535,58220.0,58219.0,0.0028987]
[1725187622576,2.08672935,58220.0,58219.0,0.0028987]
[1725187622845,4.61156699,58220.0,58219.0,0.0028987]
[1725187623065,4.71451099,58220.0,58219.0,0.0028987]
[1725187623298,4.73751099,58220.0,58219.0,0.0028987]
[1725187623719,4.47209899,58220.0,58219.0,0.0018987]
[1725187623923,4.47209899,58220.0,58219.0,0.0008987]
[1725187623924,4.38221599,58220.0,58219.0,0.0008987]
[1725187624149,4.02031435,58220.0,58219.0,0.0018987]
[1725187624380,3.72448635,58220.0,58219.0,0.0028987]
[1725187624637,3.72448635,58220.0,58219.0,0.0018987]
[1725187624638,3.71948635,58220.0,58219.0,0.0018987]
[1725187624865,3.71248635,58220.0,58219.0,0.0008987]
[1725187625128,3.71948635,58220.0,58219.0,0.0018987]
[1725187625581,3.71748635,58220.0,58219.0,0.0018987]
[1725187626505,2.93725035,58220.0,58219.0,0.0018987]
[1725187626742,2.91029745,58220.0,58219.0,0.0018987]
[1725187627390,2.91029745,58220.0,58219.0,0.0008987]
[1725187627391,2.90529745,58220.0,58219.0,0.0008987]
[1725187627607,2.13699844,58220.0,58219.0,0.0008987]
[1725187627846,4.03189644,58220.0,58219.0,0.0008987]
[1725187628063,4.04589644,58220.0,58219.0,0.0008987]
[1725187628694,3.95002844,58220.0,58219.0,0.0008987]
[1725187629137,3.97698567,58220.0,58219.0,0.0008987]
[1725187630945,3.91576368,58220.0,58219.0,0.0008987]
[1725187631167,4.23233045,58220.0,58219.0,0.0008987]
[1725187633132,4.23922445,58220.0,58219.0,0.0008987]
[1725187635012,3.95357622,58220.0,58219.0,0.0008987]
[1725187635620,3.98053363,58220.0,58219.0,0.0008987]
[1725187636289,3.98053363,58220.0,58211.0,0.1226]
[1725187636290,0.005,58216.0,58211.0,0.1226]
[1725187636613,0.515356,58212.0,58211.0,0.1226]
[1725187636823,0.936962,58212.0,58211.0,0.1226]
[1725187637044,1.624104,58212.0,58211.0,0.1226]
[1725187637483,1.6510612,58212.0,58211.0,0.1226]
[1725187639127,1.6640612,58212.0,58211.0,0.1226]
[1725187639810,1.6780612,58212.0,58211.0,0.1226]
[1725187640268,0.858987,58208.0,58207.0,0.2194]
[1725187641757,0.623299,58208.0,58204.0,0.0968]
[1725187642052,0.171806,58205.0,58204.0,0.0968]
[1725187642256,0.515419,58205.0,58204.0,0.0968]
[1725187642464,0.859032,58205.0,58204.0,0.0968]
[1725187644359,0.88599021,58205.0,58204.0,0.0968]
[1725187644574,0.89199021,58205.0,58204.0,0.0968]
[1725187645711,0.89699021,58205.0,58204.0,0.0968]
[1725187647183,0.55337721,58205.0,58204.0,0.1911]
[1725187648054,0.55337721,58205.0,58204.0,0.1919998]
[1725187648511,0.89699021,58205.0,58204.0,0.1919998]
[1725187649646,0.55337721,58205.0,58204.0,0.1919998]
[1725187651078,0.526419,58205.0,58204.0,0.1919998]
[1725187654589,0.55337673,58205.0,58204.0,0.1919998]
[1725187655267,0.20976373,58205.0,58204.0,0.1919998]
[1725187655918,0.2076964,58205.0,58204.0,0.1919998]
[1725187656140,0.5513094,58205.0,58204.0,0.1919998]
[1725187656363,0.2076964,58205.0,58204.0,0.1919998]
[1725187658756,0.2076964,58205.0,58204.0,0.1874148]
[1725187661023,0.18073867,58205.0,58204.0,0.1874148]
[1725187662280,0.18073867,58205.0,58204.0,0.2638313]
[1725187664479,0.20769604,58205.0,58204.0,0.2638313]
[1725187666068,0.03795737,58205.0,58204.0,0.2638313]
[1725187667656,0.343598,58208.0,58205.0,0.0736]
[1725187667883,0.1,58209.0,58207.0,0.0736]
[1725187668100,0.100818,58212.0,58206.0,0.0959]
[1725187668101,0.000818,58212.0,58211.0,0.0736]
[1725187668313,0.000818,58212.0,58211.0,0.1695]
[1725187669388,0.000818,58212.0,58211.0,0.2459165]
[1725187669619,0.000818,58212.0,58211.0,0.2399165]
[1725187669851,0.000818,58212.0,58211.0,0.2319165]
[1725187670754,0.008818,58212.0,58211.0,0.2319165]
[1725187671464,0.008818,58212.0,58211.0,0.7472815]
[1725187671704,0.017818,58212.0,58211.0,1.0918585]
[1725187671941,0.017818,58212.0,58211.0,1.14351316]
[1725187672379,0.017818,58212.0,58211.0,1.0918585]
[1725187672602,0.008818,58212.0,58211.0,1.0908585]
[1725187672780,0.000818,58212.0,58211.0,1.0908585]
[1725187673067,0.000818,58212.0,58211.0,1.0948585]
[1725187673286,0.000818,58212.0,58211.0,1.0988585]
[1725187674363,0.000818,58212.0,58211.0,0.2399165]
[1725187675002,0.000818,58212.0,58211.0,0.4117045]
[1725187677818,0.172603,58212.0,58211.0,0.2399165]
[1725187680911,0.516174,58212.0,58211.0,0.2399165]
[1725187684196,0.859745,58212.0,58211.0,0.2399165]
[1725187684410,0.859745,58212.0,58211.0,0.1803165]
[1725187686186,0.859745,58212.0,58211.0,0.0844165]
[1725187686619,1.23027105,58212.0,58211.0,0.0844165]
[1725187688196,0.02777305,58212.0,58211.0,0.2411165]
[1725187688862,0.19955805,58212.0,58211.0,0.2411165]
[1725187689294,0.02777305,58212.0,58211.0,0.2411165]
[1725187691069,0.000818,58212.0,58211.0,0.2411165]
[1725187696071,0.000818,58212.0,58211.0,0.2420163]
[1725187700594,0.000818,58212.0,58211.0,0.7573813]
[1725187701391,0.000818,58212.0,58211.0,0.2420163]
[1725187705385,0.02777154,58212.0,58211.0,0.2420163]
[1725187709263,0.02777154,58212.0,58211.0,0.4653934]
[1725187709674,0.02777154,58212.0,58211.0,0.4138043]
[1725187710235,0.02777154,58212.0,58211.0,0.4653934]
[1725187711127,0.000818,58212.0,58211.0,0.4653934]
[1725187711348,0.000818,58212.0,58211.0,0.2936054]
[1725187711543,0.000818,58212.0,58211.0,0.2420163]
[1725187712289,0.000818,58212.0,58211.0,0.2936054]
[1725187712493,0.000818,58212.0,58211.0,0.2420163]
[1725187712925,0.000818,58212.0,58211.0,0.2936054]
[1725187713397,0.000818,58212.0,58211.0,0.4138043]
[1725187713614,0.000818,58212.0,58211.0,0.46545387]
[1725187713819,0.000818,58212.0,58211.0,0.4138043]
[1725187714036,0.000818,58212.0,58211.0,0.46545442]
[1725187714244,0.000818,58212.0,58211.0,0.4138043]
[1725187715103,0.000818,58212.0,58211.0,0.49127868]
[1725187715318,0.000818,58212.0,58211.0,0.4138043]
[1725187715537,0.02777125,58212.0,58211.0,0.4138043]
[1725187716342,0.02777125,58212.0,58211.0,0.49127868]
[1725187716767,0.02777125,58212.0,58211.0,0.4138043]
[1725187718628,0.02777125,58212.0,58211.0,0.49127868]
[1725187718841,0.02777125,58212.0,58211.0,0.2420163]
[1725187720316,0.19955625,58212.0,58211.0,0.2420163]
[1725187720563,0.02777125,58212.0,58211.0,0.2936817]
[1725187720811,0.02777125,58212.0,58211.0,0.2420163]
[1725187721026,0.000818,58212.0,58211.0,0.2936817]
[1725187721275,0.172603,58212.0,58211.0,0.2420163]
[1725187721701,0.172603,58212.0,58211.0,0.2936817]
[1725187722353,0.516174,58212.0,58211.0,0.2936817]
[1725187723464,0.172603,58212.0,58211.0,0.2936817]
[1725187723686,0.172603,58212.0,58211.0,0.29368056]
[1725187724983,0.000818,58212.0,58211.0,0.4138043]
[1725187725414,0.000818,58212.0,58211.0,0.7573813]
[1725187726354,0.000818,58212.0,58211.0,0.83487769]
[1725187726819,0.000818,58212.0,58211.0,1.17845469]
[1725187727028,0.000818,58212.0,58211.0,1.57369596]
[1725187727251,0.000818,58212.0,58211.0,1.4445353]
[1725187729522,0.000818,58212.0,58211.0,1.57362311]
[1725187734042,0.000818,58212.0,58211.0,1.57359708]
[1725187734481,0.000818,58212.0,58211.0,1.4445353]
[1725187738727,0.000818,58212.0,58211.0,1.57354029]
[1725187740452,0.00075491,58212.0,58211.0,1.4445353]
[1725187740924,0.502151,58247.0,58221.0,0.1485]
[1725187741140,0.171737,58229.0,58224.0,0.171748]
[1725187741408,0.171738,58228.0,58224.0,0.171748]
[1725187742045,0.171738,58228.0,58224.0,0.2481645]
[1725187742734,0.171742,58227.0,58224.0,0.0774165]
[1725187742957,0.1,58226.0,58224.0,0.0774165]
[1725187744124,0.1,58226.0,58224.0,0.0764165]
[1725187744826,0.271744,58226.0,58224.0,0.0764165]
[1725187745520,0.271744,58226.0,58224.0,0.0774165]
[1725187745960,0.283744,58226.0,58224.0,0.0774165]
[1725187746411,0.294744,58226.0,58224.0,0.0784165]
[1725187749129,0.171747,58225.0,58224.0,0.0784165]
[1725187750227,0.171747,58225.0,58224.0,0.0774165]
[1725187750906,0.171747,58225.0,58224.0,0.0764165]
[1725187751341,0.182747,58225.0,58224.0,0.0774165]
[1725187751951,0.192747,58225.0,58224.0,0.0784165]
[1725187755304,1.57509,58225.0,58224.0,0.0784165]
[1725187755530,2.020585,58225.0,58224.0,0.0784165]
[1725187756156,2.36408,58225.0,58224.0,0.0784165]
[1725187756650,2.36408,58225.0,58224.0,0.0774165]
[1725187756651,1.306999,58225.0,58224.0,0.0774165]
[1725187756859,0.969737,58225.0,58224.0,0.0774165]
[1725187757075,0.981737,58225.0,58224.0,0.0784165]
[1725187757726,0.970737,58225.0,58224.0,0.0774165]
[1725187758164,1.01068784,58225.0,58224.0,0.0774165]
[1725187759209,0.99868784,58225.0,58224.0,0.0764165]
[1725187759666,1.01168784,58225.0,58224.0,0.0764165]
[1725187759892,1.16717784,58225.0,58224.0,0.0764165]
[1725187760745,1.15417784,58225.0,58224.0,0.0764165]
[1725187761160,1.124227,58225.0,58224.0,0.0764165]
[1725187761624,0.637242,58225.0,58224.0,0.0764165]
[1725187761861,0.980737,58225.0,58224.0,0.0764165]
[1725187762078,0.968737,58225.0,58224.0,0.0764165]
[1725187762473,1.084227,58225.0,58224.0,0.0764165]
[1725187762741,1.074227,58225.0,58224.0,0.0764165]
[1725187763203,1.083227,58225.0,58224.0,0.0764165]
[1725187764924,1.426722,58225.0,58224.0,0.0764165]
[1725187766698,1.428722,58225.0,58224.0,0.0764165]
[1725187767803,1.428722,58225.0,58224.0,0.0773163]
[1725187768292,1.45567299,58225.0,58224.0,0.0773163]
[1725187770946,1.428722,58225.0,58224.0,0.0773163]
[1725187772179,1.426722,58225.0,58224.0,0.0773163]
[1725187773026,2.255545,58225.0,58224.0,0.0773163]
[1725187773448,2.196008,58225.0,58224.0,0.0773163]
[1725187774205,2.141439,58225.0,58224.0,0.0773163]
[1725187775566,2.16839028,58225.0,58224.0,0.0773163]
[1725187777062,2.51188528,58225.0,58224.0,0.0773163]
[1725187777901,2.16839028,58225.0,58224.0,0.0773163]
[1725187778543,2.03976828,58225.0,58224.0,0.0773163]
[1725187781096,2.012817,58225.0,58224.0,0.0773163]
[1725187781305,1.95724903,58225.0,58224.0,0.0773163]
[1725187782376,1.95924903,58225.0,58224.0,0.0773163]
[1725187783607,1.26766403,58225.0,58224.0,0.0773163]
[1725187783851,2.47330003,58225.0,58224.0,0.0773163]
[1725187785005,2.528868,58225.0,58224.0,0.0773163]
[1725187785639,2.55581988,58225.0,58224.0,0.0773163]
[1725187789615,2.55581988,58225.0,58217.0,0.0645]
[1725187789616,0.343548,58216.0,58214.0,0.0645]
[1725187789830,0.343548,58216.0,58211.0,0.0008998]
[1725187789831,0.858912,58213.0,58212.0,0.1494]
[1725187790073,1.302477,58213.0,58212.0,0.1494]
[1725187790279,2.6286309,58213.0,58212.0,0.1494]
[1725187790773,2.6168569,58213.0,58212.0,0.1488]
[1725187790965,2.587901,58213.0,58212.0,0.1488]
[1725187791190,2.538273,58213.0,58212.0,0.1488]
[1725187791850,2.540273,58213.0,58212.0,0.1488]
[1725187792919,2.542273,58213.0,58212.0,0.1496998]
[1725187793379,2.543273,58213.0,58212.0,0.1496998]
[1725187794172,2.234027,58213.0,58212.0,0.1496998]
[1725187794389,1.707341,58213.0,58212.0,0.1496998]
[1725187795455,1.73429725,58213.0,58212.0,0.1496998]
[1725187796109,1.707341,58213.0,58212.0,0.1496998]
[1725187802716,1.709341,58213.0,58212.0,0.1496998]
[1725187803417,2.550465,58213.0,58212.0,0.1496998]
[1725187804298,2.55671654,58213.0,58212.0,0.1496998]
[1725187804919,1.48743154,58213.0,58212.0,0.1496998]
[1725187811026,1.460475,58213.0,58212.0,0.1496998]
[1725187814338,1.4874313,58213.0,58212.0,0.1496998]
[1725187817250,0.8003013,58213.0,58212.0,0.1496998]
[1725187817442,0.4387063,58213.0,58212.0,0.1496998]
[1725187817640,0.4395243,58213.0,58212.0,0.1496998]
[1725187817930,0.3025563,58213.0,58212.0,0.1496998]
[1725187818838,0.6461213,58213.0,58212.0,0.1496998]
[1725187819321,0.3025563,58213.0,58212.0,0.1496998]
[1725187820444,0.1307743,58213.0,58212.0,0.1496998]
[1725187820668,0.003818,58213.0,58212.0,0.1496998]
[1725187823948,0.003818,58213.0,58212.0,0.3214848]
[1725187825723,0.03077071,58213.0,58212.0,0.3214848]
[1725187828543,0.03077071,58213.0,58212.0,0.1496998]
[1725187830306,0.03077071,58213.0,58212.0,1.0086268]
[1725187830521,0.003818,58213.0,58212.0,1.0086268]
[1725187832936,0.003818,58213.0,58212.0,0.6650558]
[1725187833139,0.003818,58213.0,58212.0,0.1496998]
[1725187833387,0.519165,58213.0,58212.0,0.1496998]
[1725187835108,0.54611775,58213.0,58212.0,0.1496998]
[1725187836370,0.88968275,58213.0,58212.0,0.1496998]
[1725187836619,1.80228575,58213.0,58212.0,0.1496998]
[1725187836814,1.66325575,58213.0,58212.0,0.1496998]
[1725187837226,1.64851575,58213.0,58212.0,0.1496998]
[1725187837433,1.24030375,58213.0,58212.0,0.1496998]
[1725187840509,1.58386875,58213.0,58212.0,0.1496998]
[1725187841214,1.556916,58213.0,58212.0,0.1496998]
[1725187844334,1.5838702,58213.0,58212.0,0.1496998]
[1725187847663,1.4924792,58213.0,58212.0,0.1496998]
[1725187847881,1.3489792,58213.0,58212.0,0.1496998]
[1725187848785,1.3489792,58213.0,58212.0,0.0008998]
[1725187849014,1.4509792,58213.0,58212.0,0.0008998]
[1725187849273,1.4489792,58213.0,58212.0,0.0008998]
[1725187850998,1.422025,58213.0,58212.0,0.0008998]
[1725187851478,1.246425,58213.0,58212.0,0.0008998]
[1725187851684,1.420207,58213.0,58212.0,0.0008998]
[1725187853337,1.418207,58213.0,58212.0,0.0008998]
[1725187854263,1.419025,58213.0,58212.0,0.0008998]
[1725187855621,1.44598213,58213.0,58212.0,0.0008998]
[1725187856538,1.10551513,58213.0,58212.0,0.1473998]
[1725187857644,0.98668713,58213.0,58212.0,0.1473998]
[1725187861063,0.95973,58213.0,58212.0,0.1473998]
[1725187863510,1.308174,58213.0,58212.0,0.1473998]
[1725187865824,1.33512923,58213.0,58212.0,0.1473998]
[1725187870258,1.67869423,58213.0,58212.0,0.1473998]
[1725187871106,2.077585,58213.0,58212.0,0.1473998]
[1725187871318,1.823697,58213.0,58212.0,0.1473998]
[1725187871532,0.95973,58213.0,58212.0,0.1473998]
[1725187871976,0.2726,58213.0,58212.0,0.1473998]
[1725187872210,0.100818,58213.0,58212.0,0.1473998]
[1725187872440,0.000818,58213.0,58212.0,0.1473998]
[1725187874468,0.02777114,58213.0,58212.0,0.1473998]
[1725187875348,0.02777114,58213.0,58212.0,0.3191848]
[1725187878163,0.02777114,58213.0,58212.0,0.66619125]
[1725187878590,0.171765,58219.0,58214.0,0.1493]
[1725187878789,0.171765,58219.0,58213.0,0.17521529]
[1725187879000,0.171765,58219.0,58214.0,0.1493]
[1725187879209,0.171765,58219.0,58216.0,0.0664]
[1725187879469,0.171765,58219.0,58218.0,0.0664]
[1725187879684,0.171765,58219.0,58218.0,0.1493]
[1725187880553,0.185765,58219.0,58218.0,0.1493]
[1725187880785,0.014,58219.0,58218.0,0.1493]
[1725187881008,0.171764,58220.0,58218.0,0.0829]
[1725187881194,0.171764,58220.0,58219.0,0.0664]
[1725187881443,0.171764,58220.0,58219.0,0.0524]
[1725187881630,0.171764,58220.0,58219.0,0.0434]
[1725187882316,0.181764,58220.0,58219.0,0.0434]
[1725187882557,0.181764,58220.0,58219.0,0.1263]
[1725187882875,0.171764,58220.0,58219.0,0.1263]
[1725187883518,0.181764,58220.0,58219.0,0.1263]
[1725187884005,0.194764,58220.0,58219.0,0.1263]
[1725187884427,0.181764,58220.0,58219.0,0.1263]
[1725187884814,0.194764,58220.0,58219.0,0.1273]
[1725187887172,0.023,58220.0,58219.0,0.1273]
[1725187887397,0.023,58220.0,58219.0,0.299065]
[1725187887895,0.023,58220.0,58219.0,0.1273]
[1725187890262,0.023818,58220.0,58219.0,0.1273]
[1725187894754,0.023818,58220.0,58219.0,0.299065]
[1725187895181,0.023818,58220.0,58219.0,0.986125]
[1725187896255,0.013818,58220.0,58219.0,0.986125]
[1725187896675,0.000818,58220.0,58219.0,0.985125]
[1725187897320,0.000818,58220.0,58219.0,0.987125]
[1725187899189,0.005818,58220.0,58219.0,0.987125]
[1725187903891,0.005818,58220.0,58219.0,0.9880248]
[1725187906860,0.005818,58220.0,58219.0,1.3315548]
[1725187907062,0.005818,58220.0,58219.0,1.38308921]
[1725187907265,0.005818,58220.0,58219.0,1.3315548]
[1725187909941,0.000818,58229.0,58228.0,0.858692]
[1725187910179,0.000818,58229.0,58228.0,1.004792]
[1725187910386,0.000818,58229.0,58228.0,1.39978066]
[1725187910831,0.000818,58229.0,58228.0,1.39476558]
[1725187911245,0.000818,58229.0,58228.0,1.343269]
[1725187911455,0.000818,58229.0,58228.0,1.394754]
[1725187911665,0.003818,58229.0,58228.0,1.393754]
[1725187912077,0.003818,58229.0,58228.0,1.397754]
[1725187912280,0.003818,58229.0,58228.0,1.002792]
[1725187912714,0.00319755,58238.0,58228.0,0.837054]
[1725187912862,0.0129,58240.0,58232.0,0.343453]
[1725187913278,0.0129,58240.0,58234.0,0.171719]
[1725187913658,0.184605,58240.0,58234.0,0.171719]
[1725187913871,0.171706,58239.0,58234.0,0.171719]
[1725187914725,0.171706,58239.0,58235.0,0.171717]
[1725187914931,0.171706,58239.0,58233.0,0.171721]
[1725187915226,0.171706,58239.0,58232.0,0.343453]
[1725187915227,0.192603,58240.0,58234.0,0.172718]
[1725187915442,0.171708,58239.0,58234.0,0.172718]
[1725187916220,0.178708,58239.0,58234.0,0.173718]
[1725187916465,0.171709,58238.0,58234.0,0.173718]
[1725187916936,0.171709,58238.0,58234.0,0.172718]
[1725187917293,0.171709,58238.0,58235.0,0.001]
[1725187917879,0.171709,58238.0,58234.0,0.172718]
[1725187918611,0.177709,58238.0,58234.0,0.173718]
[1725187919291,0.515154,58235.0,58234.0,0.002]
[1725187919501,1.449539,58235.0,58234.0,0.002]
[1725187919733,1.837077,58235.0,58234.0,0.002]
[1725187919939,1.741122,58235.0,58234.0,0.002]
[1725187920376,1.741122,58235.0,58234.0,0.001]
[1725187920718,1.841122,58235.0,58234.0,0.002]
[1725187921374,1.841122,58235.0,58234.0,0.001]
[1725187921775,1.841122,58235.0,58234.0,0.002]
[1725187922169,1.841122,58235.0,58234.0,0.001]
[1725187922778,1.843122,58235.0,58234.0,0.001]
[1725187923143,1.841122,58235.0,58234.0,0.001]
[1725187923567,1.847122,58235.0,58234.0,0.001]
[1725187923780,0.171747,58225.0,58224.0,0.0874]
[1725187925084,0.515242,58225.0,58224.0,0.0874]
[1725187925325,0.171747,58225.0,58224.0,0.0874]
[1725187925791,0.19869462,58225.0,58224.0,0.0874]
[1725187926213,0.54218962,58225.0,58224.0,0.0874]
[1725187927953,0.19869462,58225.0,58224.0,0.0874]
[1725187929537,0.19869462,58225.0,58224.0,0.0882987]
[1725187929763,0.54218962,58225.0,58224.0,0.0932987]
[1725187930206,0.19869462,58225.0,58224.0,0.0932987]
[1725187931072,0.171747,58225.0,58224.0,0.0932987]
[1725187933118,0.515242,58225.0,58224.0,0.0932987]
[1725187933360,0.171747,58225.0,58224.0,0.0932987]
[1725187934001,0.25923951,58226.0,58224.0,0.0932987]
[1725187934225,0.171747,58225.0,58224.0,0.0932987]
[1725187934650,0.274301,58225.0,58224.0,0.0932987]
[1725187935809,0.30124867,58225.0,58224.0,0.0932987]
[1725187936501,0.30124867,58225.0,58224.0,0.0882987]
[1725187936951,0.30124867,58225.0,58224.0,0.0922987]
[1725187937173,0.30124867,58225.0,58224.0,0.0882987]
[1725187937616,0.30124867,58225.0,58224.0,0.0932987]
[1725187939068,0.64474367,58225.0,58224.0,0.0932987]
[1725187940395,0.30124867,58225.0,58224.0,0.0932987]
[1725187941132,0.617796,58225.0,58224.0,0.0932987]
[1725187944137,0.64474369,58225.0,58224.0,0.0932987]
[1725187945018,0.54218969,58225.0,58224.0,0.0932987]
[1725187948121,0.19869469,58225.0,58224.0,0.0932987]
[1725187948999,0.54218969,58225.0,58224.0,0.0932987]
[1725187951113,0.515242,58225.0,58224.0,0.0932987]
[1725187956241,0.858737,58225.0,58224.0,0.0932987]
[1725187956476,1.453937,58225.0,58224.0,0.0058987]
[1725187956719,1.567637,58225.0,58224.0,0.0058987]
[1725187957837,1.567637,58225.0,58224.0,0.0008987]
[1725187958288,1.578637,58225.0,58224.0,0.0018987]
[1725187958755,1.922132,58225.0,58224.0,0.0018987]
[1725187959183,1.936132,58225.0,58224.0,0.0028987]
[1725187959388,1.592637,58225.0,58224.0,0.0028987]
[1725187959806,1.922132,58225.0,58224.0,0.0018987]
[1725187960271,1.936132,58225.0,58224.0,0.0028987]
[1725187960683,1.592637,58225.0,58224.0,0.0028987]
[1725187961614,1.42089,58225.0,58224.0,0.0028987]
[1725187961826,1.592637,58225.0,58224.0,0.0028987]
[1725187962256,1.936132,58225.0,58224.0,0.0028987]
[1725187962490,1.592637,58225.0,58224.0,0.0028987]
[1725187963879,1.936132,58225.0,58224.0,0.0028987]
[1725187964121,1.61958887,58225.0,58224.0,0.0028987]
[1725187965010,1.62158887,58225.0,58224.0,0.0028987]
[1725187965223,1.61958887,58225.0,58224.0,0.0028987]
[1725187966306,1.96308387,58225.0,58224.0,0.0028987]
[1725187967666,1.61958887,58225.0,58224.0,0.0028987]
[1725187968193,1.96308387,58225.0,58224.0,0.0028987]
[1725187968460,1.61958887,58225.0,58224.0,0.0028987]
[1725187968685,1.60588887,58225.0,58224.0,0.0907987]
[1725187969173,1.26239387,58225.0,58224.0,0.1593987]
[1725187970264,1.21545587,58225.0,58224.0,0.1593987]
[1725187970518,0.640242,58225.0,58224.0,0.1593987]
[1725187971447,0.983737,58225.0,58224.0,0.1593987]
[1725187971654,0.640242,58225.0,58224.0,0.1593987]
[1725187973816,0.66719154,58225.0,58224.0,0.1593987]
[1725187974472,1.01068654,58225.0,58224.0,0.1593987]
[1725187974695,1.67986854,58225.0,58224.0,0.1593987]
[1725187975101,1.66609854,58225.0,58224.0,0.1593987]
[1725187975724,1.59247754,58225.0,58224.0,0.1593987]
[1725187976573,1.41532954,58225.0,58224.0,0.1593987]
[1725187977039,0.66719154,58225.0,58224.0,0.1593987]
[1725187977471,1.01068654,58225.0,58224.0,0.1593987]
[1725187977687,1.01150454,58225.0,58224.0,0.1593987]
[1725187980196,0.66800954,58225.0,58224.0,0.1593987]
[1725187980405,0.56800954,58225.0,58224.0,0.1593987]
[1725187980649,0.91150454,58225.0,58224.0,0.1593987]
[1725187981067,0.884555,58225.0,58224.0,0.1593987]
[1725187981684,1.028029,58225.0,58224.0,0.1593987]
[1725187982322,1.028029,58225.0,58224.0,0.0907987]
[1725187982529,1.371524,58225.0,58224.0,0.0907987]
[1725187983193,1.39847371,58225.0,58224.0,0.0907987]
[1725187985398,1.05497871,58225.0,58224.0,0.0907987]
[1725187985803,1.39847371,58225.0,58224.0,0.0907987]
[1725187988907,1.39847371,58225.0,58224.0,0.0028987]
[1725187994694,1.25499971,58225.0,58224.0,0.0028987]
[1725187994904,2.15134171,58225.0,58224.0,0.0028987]
[1725188008735,3.68321971,58225.0,58224.0,0.0028987]
[1725188008953,3.12693771,58225.0,58224.0,0.0028987]
[1725188011305,1.96494371,58225.0,58224.0,0.0028987]
[1725188016559,2.42815371,58225.0,58224.0,0.0028987]
[1725188016963,2.38981871,58225.0,58224.0,0.0028987]
[1725188017628,2.37220471,58225.0,58224.0,0.0028987]
[1725188019005,2.30587671,58225.0,58224.0,0.0028987]
[1725188020329,2.30162971,58225.0,58224.0,0.0028987]
[1725188022068,2.23834571,58225.0,58224.0,0.0028987]
[1725188022783,2.23834571,58225.0,58224.0,0.0688987]
[1725188024684,2.00553171,58225.0,58224.0,0.0688987]
[1725188025784,1.57946971,58225.0,58224.0,0.0688987]
[1725188026243,0.87279771,58225.0,58224.0,0.1531987]
[1725188026448,0.000818,58226.0,58224.0,0.1531987]